Cogmind - Beta 15 @@@ ROGUE MODE // 2025.06.13 @ 01:30:15 Player: Chair Result: Destroyed by EXE-6 with Concept XC Strikerail Performance ------------- Evolutions (8) 4000 Regions Visited (23) 4600 Robots Destroyed (396) 1980 Value Destroyed (18568) 18568 Prototype IDs (52) 1040 Alien Tech Used (5) 1000 Bonus (10130) 10130 TOTAL SCORE: 41318 Bonus ------- Triggered High Security 1000 High Alert Combat Kills 3422 Follower Combat Kills 2360 Registered with UFD 300 Met Optimus in HQ 500 Met Zhirov 300 Met Warlord at Base 500 MAIN.C Attacked Warlord 500 Warlord Defense Kills 748 Scanned by Researcher 500 Cogmind --------- Core Integrity 0/1450 Matter 182/300 Energy 98/100 System Corruption 34% Temperature Cool (0) Movement Core (50) Location -2/Protoforge Parts ------- > --- POWER (2) -------- (None) > --- PROPULSION (4) --- (None) > --- UTILITY (14) ----- (None) > --- WEAPON (4) ------- (None) > --- INVENTORY (5) ---- (None) Peak State ------------ > --- POWER ------------ Hybrid Antimatter Reactor Hybrid Antimatter Reactor > --- PROPULSION ------- Armored Huge Wheel Centrium Wheel Centrium Wheel > --- UTILITY ---------- Advanced Cryofiber Web Improved Cooling System Huge Storage Unit Experimental Sensor Array Advanced Signal Interpreter Experimental Targeting Computer SHELL Armor Phase Armor Graphene Brace Improved Force Field Long-range Tractor Beam > --- WEAPON ----------- High-powered Disruptor Cannon Cooled Particle Cannon Cooled Particle Cannon > --- INVENTORY -------- Light Quantum Reactor Advanced Energy Well Matter Compressor Advanced Weapon Cycler Advanced Transmission Jammer Heavy Regenerative Plating Experimental Thermal Shield Advanced Point Defense System Transdimensional Reconstructor Terrabomb Advanced Plasma Cannon Matter Neutralizer Heavy Gauss Cannon Heavy Autocannon Tiamat Missile Launcher Tiamat Missile Launcher CPS Tube [Rating: 197] Favorites ----------- Power Vortex Chain Reactor Engine Improved Deuterium Engine Reactor Vortex Chain Reactor Propulsion Wheel Treads Armored Treads Wheel Wheel Utility Huge Storage Unit Device Improved Cooling System Storage Huge Storage Unit Processor Experimental Targeting Computer Hackware Makeshift System Shield Protection Heavy Reactive Plating Artifact Phase Armor Weapon Cooled Plasma Cannon Energy Gun Medium Laser Energy Cannon Cooled Plasma Cannon Ballistic Gun Railgun Ballistic Cannon Improved Light Cannon Launcher Tiamat Missile Launcher Special Weapon Junk Cannon Impact Weapon Hammer Slashing Weapon Mining Claw Build | -11 -10 -9 -9 -9 -9 -6 -6 -6 -5 -5 -5 -5 -4 -4 -4 -4 -4 -3 -3 -3 -2 -2 -2 ------- Run | Yrd Mat Mat Sto Rec Scr Fac Was Fac Fac Upp Upp War Pro Fac Upp Upp Zhi Pro Res Qua Res Tes Frg Slots Evolved 16 | . . 2 . . . 6 . . 2 . . . . 2 . . . . 2 . 2 . . Power 1 | . . . . . . 1 . . . . . . . . . . . . . . . . . Propulsion 2 | . . . . . . . . . . . . . . 2 . . . . . . . . . Utility 11 | . . 2 . . . 4 . . 2 . . . . . . . . . 1 . 2 . . Weapon 2 | . . . . . . 1 . . . . . . . . . . . . 1 . . . . Parts Attached 175 | 4 9 17 8 2 8 25 4 6 4 1 4 14 3 23 1 3 2 4 5 4 . 12 12 Power 17 | . 1 3 1 . . 5 1 . . . . 1 . . . . . . . . . 3 2 Engine 11 | . 1 3 1 . . 5 1 . . . . . . . . . . . . . . . . Core . | . . . . . . . . . . . . . . . . . . . . . . . . Reactor 6 | . . . . . . . . . . . . 1 . . . . . . . . . 3 2 Propulsion 27 | 2 . 2 3 1 1 2 . . 1 . . 1 . 10 . 1 . . . 2 . . 1 Treads 7 | 2 . . 2 . 1 1 . . . . . . . . . 1 . . . . . . . Leg . | . . . . . . . . . . . . . . . . . . . . . . . . Wheel 20 | . . 2 1 1 . 1 . . 1 . . 1 . 10 . . . . . 2 . . 1 Hover . | . . . . . . . . . . . . . . . . . . . . . . . . Flight . | . . . . . . . . . . . . . . . . . . . . . . . . Utility 83 | . 3 6 3 1 3 12 3 5 2 . 2 10 1 9 1 1 2 3 4 2 . 7 3 Device 45 | . . 2 1 . 1 7 2 1 2 . . 5 1 7 1 1 . 2 3 1 . 5 3 Storage 6 | . 2 1 1 . . . . . . . . . . 1 . . 1 . . . . . . Processor 7 | . . . . . . 2 . 1 . . . 3 . 1 . . . . . . . . . Hackware 1 | . . . . . . . . . . . . . . . . . . 1 . . . . . Protection 23 | . 1 3 1 1 2 3 1 3 . . 2 2 . . . . 1 . 1 . . 2 . Artifact 1 | . . . . . . . . . . . . . . . . . . . . 1 . . . Weapon 48 | 2 5 6 1 . 4 6 . 1 1 1 2 2 2 4 . 1 . 1 1 . . 2 6 Energy Gun 9 | 2 2 . . . . . . . . . 1 . . . . . . . . . . . 4 Energy Cannon 18 | . 1 2 1 . 2 5 . 1 . 1 . . . 2 . 1 . 1 . . . 1 . Ballistic Gun 1 | . . . . . . . . . . . . . . . . . . . . . . . 1 Ballistic Cannon 5 | . 1 1 . . . . . . . . . 1 . . . . . . 1 . . 1 . Launcher 8 | . . 2 . . 1 1 . . 1 . 1 . 1 1 . . . . . . . . . Special Weapon 5 | . . . . . 1 . . . . . . 1 1 1 . . . . . . . . 1 Impact Weapon 1 | . 1 . . . . . . . . . . . . . . . . . . . . . . Slashing Weapon 1 | . . 1 . . . . . . . . . . . . . . . . . . . . . Piercing Weapon . | . . . . . . . . . . . . . . . . . . . . . . . . Special Melee Weapon . | . . . . . . . . . . . . . . . . . . . . . . . . Unidentified Prototypes 32 | . . . . . 1 2 . 1 . 1 . 9 2 . . . 3 . 2 2 . 5 4 Parts Lost 32 | . . . 1 . . 3 . . . 1 . . . 3 . . . . . . . 11 13 Power 3 | . . . . . . . . . . . . . . . . . . . . . . 1 2 Propulsion 9 | . . . 1 . . 1 . . . . . . . 3 . . . . . . . . 4 Utility 10 | . . . . . . 2 . . . . . . . . . . . . . . . 6 2 Weapon 10 | . . . . . . . . . . 1 . . . . . . . . . . . 4 5 Highest Loss Streak 8 | . . . 1 . . 1 . . . 1 . . . 1 . . . . . . . 6 8 To Critical Strikes . | . . . . . . . . . . . . . . . . . . . . . . . . Average Backups 21 | 3 8 16 24 25 24 21 21 21 20 21 21 23 21 22 23 22 23 23 21 20 19 18 19 Power 1 | . . . 1 2 1 1 2 2 2 3 3 2 3 2 2 2 2 2 2 2 2 2 1 Propulsion 2 | 1 2 5 5 5 4 3 3 2 2 2 2 2 2 . . . . . . . . . . Utility 9 | . . 4 10 10 9 7 7 7 8 9 9 10 8 10 12 12 12 12 10 10 8 8 8 Weapon 7 | . 3 6 7 8 9 7 8 7 7 6 5 7 7 7 7 6 7 7 6 6 6 5 5 Tool/Special . | . . . . . . . . . . . . . . . . . . . . . . . . Unused Backups 50 | . 3 6 4 . 6 4 . 3 . . . 5 . 4 . 2 . 1 5 3 . 1 3 Power 10 | . 1 . . . 1 . . 1 . . . 2 . 3 . . . . . . . . 2 Propulsion 6 | . 2 2 1 . . . . . . . . . . . . . . . 1 . . . . Utility 18 | . . . 2 . 4 . . 1 . . . 3 . 1 . . . . 4 1 . 1 1 Weapon 16 | . . 4 1 . 1 4 . 1 . . . . . . . 2 . 1 . 2 . . . Tool/Special . | . . . . . . . . . . . . . . . . . . . . . . . . Average Slot Usage (%) 86 | . 92 96 99 100 99 93 82 80 75 75 80 78 82 85 80 79 65 80 80 79 82 79 79 Engine 6 | . 9 11 11 11 11 12 13 13 11 11 11 6 . . . . . . . . . . . Reactor 2 | . . . . . . . . . . . . 2 5 5 5 5 5 5 4 4 4 6 7 Treads 3 | . 28 16 11 11 7 . . . . . . . . . . . . . . . . . . Wheel 11 | . . 5 10 11 14 12 13 12 11 11 11 11 11 15 10 10 10 10 9 10 12 12 11 Device 19 | . . 16 11 11 10 17 14 11 16 16 22 18 24 29 30 30 27 29 30 23 28 24 24 Storage 6 | . 12 11 11 11 11 6 6 6 5 5 5 5 5 5 5 5 6 5 4 4 4 4 3 Processor 4 | . . . . . . 7 6 4 . . . 2 5 8 10 10 10 10 9 9 8 8 7 Protection 12 | . 13 13 21 22 22 14 7 10 11 11 13 15 13 6 5 5 5 5 4 4 4 6 7 Energy Cannon 14 | . . 9 10 11 13 19 20 20 15 16 15 14 15 14 15 14 . 15 17 18 16 10 6 Ballistic Cannon 2 | . 8 10 11 11 8 . . . . . . . . . . . . . . . . 3 . Peak Build Rating 197 | 4 9 19 25 23 33 73 82 82 92 93 100 114 118 133 131 136 134 134 154 172 185 197 196 Average Rating 89 | 3 7 13 22 23 23 63 78 77 89 92 95 100 110 122 130 129 113 131 148 164 184 183 179 On Entrance 90 | . 4 9 19 23 23 25 68 80 79 89 93 94 112 111 131 130 130 134 131 149 170 185 183 Naked Turns 23 | . . . . . . . . . . . . . . . . . . . . . . . 23 Heaviest Build 278 | 4 23 106 109 109 118 168 177 211 218 214 240 278 232 212 197 199 199 199 213 240 242 240 228 Greatest Support 60 | 40 40 20 40 10 20 26 26 26 26 26 26 26 26 60 56 56 56 56 56 60 60 60 60 Greatest Overweight (x) 16 | . 1 10 10 10 11 16 6 8 8 8 9 10 8 5 3 7 3 3 3 5 4 6 4 Average Overweight (x) 5 | . . 5 9 10 8 6 5 6 8 8 8 8 7 3 3 3 2 3 3 3 3 3 2 Largest Inventory Capacity 25 | 5 10 25 25 25 25 25 25 25 25 25 25 25 25 25 25 25 25 25 25 25 25 25 25 Average Capacity 24 | 5 9 17 25 25 25 25 25 25 25 25 25 25 25 25 25 25 25 25 25 25 25 25 24 Most Carried 25 | 4 10 25 25 25 25 25 25 25 25 25 25 25 25 25 25 25 25 25 25 25 23 25 25 Average Carried 23 | 3 8 16 24 25 24 24 24 24 23 24 24 24 24 24 25 24 24 24 24 24 22 20 21 Final Capacity 25 | 5 10 25 25 25 25 25 25 25 25 25 25 25 25 25 25 25 25 25 25 25 25 25 5 Final Carried 25 | 4 10 25 25 25 25 25 25 25 25 25 25 25 25 25 25 25 25 25 25 24 23 19 . Class Distribution -------------------- 27% | Scavenger-Tank 25% | Mutant 18% | Skirmisher 7% | Tank 5% | Commander-Skirmisher 5% | Scavenger-Skirmisher 3% | Gunner Dominant Class ---------------- Mutant | -10/Materials Mutant | -9/Materials Mutant | -9/Storage Mutant | -9/Recycling Mutant | -9/Scraptown Skirmisher | -6/Factory Scavenger-Skirmisher | -6/Waste Skirmisher | -6/Factory Scavenger-Tank | -5/Factory Scavenger-Tank | -5/Upper Caves Scavenger-Tank | -5/Upper Caves Scavenger-Tank | -5/Warlord Scavenger-Tank | -4/Proximity Caves Scavenger-Tank | -4/Factory Commander-Skirmisher | -4/Upper Caves Skirmisher | -4/Upper Caves Mutant | -4/Zhirov Skirmisher | -3/Proximity Caves Skirmisher | -3/Research Tank | -3/Quarantine Tank | -2/Research Skirmisher | -2/Testing Scavenger-Skirmisher | -2/Protoforge Resources | -11 -10 -9 -9 -9 -9 -6 -6 -6 -5 -5 -5 -5 -4 -4 -4 -4 -4 -3 -3 -3 -2 -2 -2 ----------- Run | Yrd Mat Mat Sto Rec Scr Fac Was Fac Fac Upp Upp War Pro Fac Upp Upp Zhi Pro Res Qua Res Tes Frg Matter Collected 9037 | 240 121 349 646 76 133 953 60 460 107 62 486 347 263 1399 178 298 . 329 465 197 98 921 849 Remotely 668 | . . . . . . . . . . . . . . . . . . . . . . 668 . Salvage Created 20714 | 71 102 461 1203 443 . 2169 253 794 622 366 1585 58 740 4663 503 273 . 197 2394 700 316 1757 1044 Parts 807 | 1 9 30 87 16 . 84 7 32 21 6 46 3 20 158 21 9 . 7 104 30 7 60 49 Haulers Intercepted 23 | . . 3 5 . . 2 . . . . . . . 7 . . . . 3 1 . 2 . Recyclers Shooed 16 | . . . 4 1 . 3 . 1 . . . . . 5 . . . . 1 . . 1 . Parts Field Recycled . | . . . . . . . . . . . . . . . . . . . . . . . . Retrieved Matter . | . . . . . . . . . . . . . . . . . . . . . . . . Parts Self-Destructed 82 | . . . . . . . . . . 5 15 . 9 . 28 18 . 7 . . . . . Prevented 32 | . . . . . . . . . . 2 20 . 7 . 3 . . . . . . . . Kills | -11 -10 -9 -9 -9 -9 -6 -6 -6 -5 -5 -5 -5 -4 -4 -4 -4 -4 -3 -3 -3 -2 -2 -2 ------- Run | Yrd Mat Mat Sto Rec Scr Fac Was Fac Fac Upp Upp War Pro Fac Upp Upp Zhi Pro Res Qua Res Tes Frg Combat Hostiles Destroyed 284 | . 2 8 28 3 . 28 1 9 11 5 22 7 17 59 7 6 . 2 20 8 4 24 13 Melee 1 | . . . . . . . . . . . . . . 1 . . . . . . . . . Guns 4 | . . . . . . . . . . . . . . . . . . . . . . . 4 Cannons 149 | . 2 1 13 3 . 18 . 7 7 2 7 1 6 23 7 1 . 2 16 8 1 15 9 AOE 82 | . . 7 14 . . 3 . . 3 2 5 6 9 24 . 4 . . . . . 5 . Classes Destroyed 27 | 1 3 4 3 . . 3 1 2 . 1 1 . 2 1 . . . . 2 . . 2 1 Worker 20 | . . 2 2 . . . . . . . . . . 3 . . . . 4 2 . 6 1 Builder 17 | . . . . . . 2 . . . . . . . 2 . . . . 5 1 . 4 3 Tunneler 1 | . . . . . . . . . . . . . . . . . . . 1 . . . . Hauler 23 | . . 3 5 . . 2 . . . . . . . 7 . . . . 3 1 . 2 . Recycler 22 | 1 . 2 1 4 . 1 . 1 1 . . . . 7 . . . . 4 . . . . Minesweeper 2 | . . . . . . . . . . 1 . . . . 1 . . . . . . . . Mechanic 1 | . . . . . . . . 1 . . . . . . . . . . . . . . . Operator 10 | . 1 . 2 . . 1 . 1 . . . . . 3 . . . . 1 . . . 1 Drone 2 | . . . . . . . . . . . . . 1 . . . . . . . . . 1 Watcher 18 | . 2 1 1 . . 2 . . . . . . . 3 . . . . 3 2 1 1 2 Swarmer 46 | . . 4 9 . . . . . 4 2 . 1 3 15 2 4 . . 2 . . . . Saboteur 3 | . . . . . . . . . . . . . 1 2 . . . . . . . . . Grunt 83 | . 2 3 8 . . 17 . 4 2 . 8 1 4 26 2 2 . . 3 . . 1 . Brawler 9 | . . . 2 . . 1 . 1 . . 1 1 1 1 . . . . 1 . . . . Duelist 14 | . . . 2 . . . . . 1 2 3 . 4 . 2 . . . . . . . . Protector 4 | . . . 1 . . . . . . . 1 2 . . . . . . . . . . . Researcher 3 | . . . . . . . . . . . . . . . . . . . . . . 3 . Sentry 25 | . . 1 6 3 . 3 . . 1 1 1 . 2 1 1 . . . . . 1 . 4 Demolisher 3 | . . . . . . . . . . . . . . 1 . . . . . . . 2 . Hunter 33 | . . . . . . 2 . 1 1 . 2 2 . 6 . . . 2 4 2 2 9 . Programmer 41 | . . . . . . 5 . 1 2 . 1 . 1 8 . . . . 7 6 1 6 3 Heavy 4 | . . . . . . . . 2 . . . . . . . . . . 2 . . . . Q-Series 1 | . . . . . . . . . . . . . . . . . . . . . . . 1 Behemoth 1 | . . . . . . . . . . . . . . . . . . . 1 . . . . Compactor 1 | . . . . . . . 1 . . . . . . . . . . . . . . . . Hotshot 4 | . . . . . . . . . . . . . . . . . . . . . . . 4 Assembled 6 | . . . . . . . . . . . . . . . . . . . . . . 6 . Thug 1 | . . . . . . . . . . . 1 . . . . . . . . . . . . Savage 3 | . . . . . . . . . . . 3 . . . . . . . . . . . . Mutant 1 | . . . . . . . . . . . 1 . . . . . . . . . . . . Best Kill Streak 18 | 1 1 5 5 4 . 6 1 3 5 5 5 7 9 15 5 4 . 2 9 4 3 18 5 Combat Bots Only 13 | . 1 4 5 1 . 5 1 2 5 5 5 7 9 12 5 4 . 2 5 3 3 13 2 Max Kills in Single Turn 5 | 1 1 3 3 1 . 3 1 1 2 2 2 4 4 5 1 3 . 1 2 2 1 3 1 Gunslinging . | . . . . . . . . . . . . . . . . . . . . . . . . Exploded 5 | . . 3 3 . . 2 . . 2 2 2 4 4 5 . 3 . . . . . 2 . Melee 1 | . . . . . . . . . . . . . . 1 . . . . . . . . . Uniques/NPCs Destroyed . | . . . . . . . . . . . . . . . . . . . . . . . . Combat | -11 -10 -9 -9 -9 -9 -6 -6 -6 -5 -5 -5 -5 -4 -4 -4 -4 -4 -3 -3 -3 -2 -2 -2 -------- Run | Yrd Mat Mat Sto Rec Scr Fac Was Fac Fac Upp Upp War Pro Fac Upp Upp Zhi Pro Res Qua Res Tes Frg Hostile Shots Fired 1206 | . 12 19 47 6 . 173 . 24 40 17 75 13 45 130 . 3 . 17 48 38 32 254 213 Missed 352 | . 5 4 13 1 . 60 . 6 11 8 23 2 7 42 . 2 . 6 17 14 6 84 41 Intercepted 7 | . . . . . . . . . . . . . . . . . . . . . . . 7 Hits 854 | . 7 15 34 5 . 113 . 18 29 9 52 11 38 88 . 1 . 11 31 24 26 170 172 Melee 14 | . . . 1 . . 2 . . 1 2 . . 1 . . . . . . . . 7 . Projectile 840 | . 7 15 33 5 . 111 . 18 28 7 52 11 37 88 . 1 . 11 31 24 26 163 172 AOE 21 | . . . . . . . . . . . . . 7 1 . . . . . . . 5 8 Critical Strikes 47 | . . . 1 . . 1 . 2 2 . 2 . 1 9 . . . . 3 1 2 7 16 Actively Blocked 38 | . . . . . . . . . 2 . 2 . 1 9 . . . . 2 . 2 7 13 Part Disruptions 9 | . . . . . . . . . . . . . . . . . . . 2 . 1 1 5 Damage Taken 16082 | . 75 185 478 78 . 1569 130 311 308 192 757 60 664 1260 . 16 . 66 305 184 300 3858 5286 Core 1936 | . . 27 101 . . 91 10 . 11 13 41 . 18 164 . . . 6 5 28 71 319 1031 Absorbed by Shields 2896 | . . . . . . . . . . . . 67 422 919 . 16 . 72 321 197 100 377 405 Redirected to Core 269 | . . . . . . . . . . . . . . . . . . . . 26 71 172 . Ignored by Resistances 1877 | . . . . . . . . 187 233 33 302 79 124 121 . . . 97 221 92 213 175 . Regen/Repaired (Parts) 3395 | . . . 169 . . 480 82 . . . . 128 . . . . . . . . . 1368 1168 Core Remaining (%) 89 | 100 100 . . . 68 . . 88 . . . . 91 . . . . 85 . 97 . . . Volleys Fired 972 | 6 16 37 76 12 . 93 19 37 25 24 47 7 36 158 21 17 . 14 92 48 12 83 92 Largest 4 | 2 2 2 2 2 . 3 3 3 3 3 3 1 3 3 3 3 . 3 4 4 4 4 4 Hottest 405 | 100 100 112 101 101 . 168 315 315 105 315 105 105 300 240 240 240 . 240 405 345 345 405 328 Shots Fired 2364 | 12 32 54 137 24 . 209 57 77 60 70 128 7 78 362 64 48 . 43 242 114 47 228 271 Gun 173 | 12 17 . . . . . . . . . . . . . . . . . . . . . 144 Cannon 2092 | . 15 46 128 24 . 206 57 77 58 69 107 5 70 325 64 46 . 43 242 114 47 223 126 Launcher 87 | . . 8 9 . . 3 . . 2 1 21 . 6 30 . 2 . . . . . 5 . Special 12 | . . . . . . . . . . . . 2 2 7 . . . . . . . . 1 Kinetic 173 | . 15 20 61 12 . . . . . . . 3 . . . . . . . . . 41 21 Thermal 2034 | 12 16 15 67 12 . 181 57 77 58 69 107 2 70 325 64 46 . 43 242 114 47 182 228 Explosive 46 | . . 8 9 . . . . . 2 . . 2 2 16 . 2 . . . . . 5 . Electromagnetic 103 | . 1 11 . . . 28 . . . 1 21 . 6 14 . . . . . . . . 21 Robot Hit Streak 26 | 1 5 9 13 8 . 19 17 6 8 26 11 1 12 20 17 5 . 5 17 8 9 15 14 Robot Miss Streak 6 | 5 6 3 5 2 . 3 3 2 2 1 2 2 3 3 1 2 . 2 3 4 2 3 3 Penetration Max 1 | . . . . . . . . . . . . . . . . . . . . . . . 1 Secondary Targets . | . . . . . . . . . . . . . . . . . . . . . . . . Shots Hit Robots 1277 | 3 19 34 81 14 . 133 41 38 37 24 46 2 39 225 28 9 . 12 116 51 25 129 171 Core Hits 638 | 2 6 19 54 7 . 56 4 16 17 10 43 17 33 127 9 6 . 5 45 19 6 85 52 Critical Kills 22 | . . . 1 . . 3 1 2 . . . . 1 5 . . . . 4 1 2 2 . Critical Parts Destroyed . | . . . . . . . . . . . . . . . . . . . . . . . . Critical Strikes 41 | . 1 1 2 . . 3 1 2 . . . 1 1 5 . . . . 4 1 2 7 10 Burn 10 | . 1 . . . . . . . . . . . . . . . . . . . . . 9 Meltdown 22 | . . . 1 . . 3 1 2 . . . . 1 5 . . . . 4 1 2 2 . Blast 7 | . . 1 1 . . . . . . . . . . . . . . . . . . 5 . Corrupt 1 | . . . . . . . . . . . . . . . . . . . . . . . 1 Sever 1 | . . . . . . . . . . . . 1 . . . . . . . . . . . Melee Attacks 11 | . 1 10 . . . . . . . . . . . . . . . . . . . . . Impact 1 | . 1 . . . . . . . . . . . . . . . . . . . . . . Slashing 10 | . . 10 . . . . . . . . . . . . . . . . . . . . . Piercing . | . . . . . . . . . . . . . . . . . . . . . . . . Sneak Attacks . | . . . . . . . . . . . . . . . . . . . . . . . . Combat Hostiles . | . . . . . . . . . . . . . . . . . . . . . . . . Follow-up Attacks . | . . . . . . . . . . . . . . . . . . . . . . . . Damage Inflicted 59350 | 39 285 1031 2586 313 . 5054 1472 1283 1571 993 3031 1972 3527 12546 922 854 . 498 5874 2378 1162 6466 5493 Guns 3405 | 39 127 . . . . . . . . . . . . . . . . . . . . . 3239 Cannons 40259 | . 158 678 1776 304 . 4270 1472 1279 1343 885 1240 135 1198 7266 922 412 . 498 5874 2378 1162 4819 2190 Explosions 15501 | . . 346 809 . . 784 . . 228 108 1791 1766 2236 5280 . 442 . . . . . 1647 64 Melee . | . . . . . . . . . . . . . . . . . . . . . . . . Ramming 21 | . . 7 1 9 . . . 4 . . . . . . . . . . . . . . . Kinetic 3509 | . 158 334 728 132 . . . . . . . 135 . . . . . . . . . 1319 703 Thermal 40329 | 39 127 210 1048 172 . 4189 1472 1279 1343 885 1436 . 1281 7737 922 412 . 498 5874 2378 1162 3522 4343 Explosive 10016 | . . 346 809 . . . . . 228 . . 1766 1619 3625 . 442 . . . . . 1181 . Electromagnetic 5311 | . . 134 . . . 865 . . . 108 1595 . 534 1184 . . . . . . . 444 447 Impact . | . . . . . . . . . . . . . . . . . . . . . . . . Slashing 164 | . . . . . . . . . . . . 71 93 . . . . . . . . . . Piercing . | . . . . . . . . . . . . . . . . . . . . . . . . Highest Corruption 34 | . . . 1 1 . 3 . . . . . . . 6 6 6 6 6 3 10 . 18 34 Average Corruption 6 | . . . 1 1 . 1 . . . . . . . 4 6 6 6 6 2 6 . 15 19 Corruption Purged 3 | . . . . . . 3 . . . . . . . . . . . . . . . . . Corruption Blocked . | . . . . . . . . . . . . . . . . . . . . . . . . Effects 332 | . . . 9 7 . . . . . . . . . 42 43 37 6 24 12 32 . 52 68 Message Errors 64 | . . . 2 2 . . . . . . . . . 8 12 8 1 3 5 9 . 7 7 Matter Fused 74 | . . . 3 1 . . . . . . . . . 9 8 6 2 14 . 8 . 7 16 Heat Flow Errors 39 | . . . . 1 . . . . . . . . . 3 6 6 2 2 1 4 . 7 7 Energy Discharges 39 | . . . 1 3 . . . . . . . . . 7 2 4 . 1 2 2 . 10 7 Parts Rejected 6 | . . . . . . . . . . . . . . 3 . . . . . 1 . . 2 Parts Fused 2 | . . . . . . . . . . . . . . . . 1 . . . . . 1 . Data Loss (minor) 39 | . . . 1 . . . . . . . . . . 5 8 5 1 1 2 2 . 6 8 Data Loss (major) 14 | . . . 1 . . . . . . . . . . 2 3 2 . 2 . 2 . 1 1 Misfires 14 | . . . . . . . . . . . . . . 2 2 2 . 1 1 1 . 3 2 Alerts 9 | . . . 1 . . . . . . . . . . 3 1 2 . . 1 . . . 1 Misdirections 3 | . . . . . . . . . . . . . . . . . . . . . . 2 1 Weapon Failures 29 | . . . . . . . . . . . . . . . 1 1 . . . 3 . 8 16 Overload Shots 80 | . . . . . . . 4 3 . 3 . 1 6 27 2 1 . 1 16 5 2 9 . Effects 5 | . . . . . . . . . . 1 . . . 3 . . . 1 . . . . . Energy Bleed 2 | . . . . . . . . . . 1 . . . 1 . . . . . . . . . Heat Surge 3 | . . . . . . . . . . . . . . 2 . . . 1 . . . . . Overflow Damage 1914 | . . 8 76 . . 143 . 35 39 22 3 50 110 459 17 90 . 23 288 146 45 237 123 Projectiles 1564 | . . . 58 . . 122 . 35 39 22 3 50 20 246 17 90 . 23 288 146 45 237 123 Explosions 350 | . . 8 18 . . 21 . . . . . . 90 213 . . . . . . . . . Melee . | . . . . . . . . . . . . . . . . . . . . . . . . Knockbacks 21 | . 2 1 6 1 . . . . . . . . . . . . . . . . . 6 5 Impact . | . . . . . . . . . . . . . . . . . . . . . . . . Kinetic 20 | . 2 1 5 1 . . . . . . . . . . . . . . . . . 6 5 Secondary 1 | . . . 1 . . . . . . . . . . . . . . . . . . . . Self-Inflicted Damage 583 | . . . 69 4 . 149 . 2 . . 47 . 109 160 . . . . . . . 43 . Shots 16 | . . . 3 . . 2 . . . . 2 . 3 5 . . . . . . . 1 . Rammed 6 | . . 3 1 1 . . . 1 . . . . . . . . . . . . . . . Targets Rammed 6 | . . 3 1 1 . . . 1 . . . . . . . . . . . . . . . Kicked . | . . . . . . . . . . . . . . . . . . . . . . . . Crushed . | . . . . . . . . . . . . . . . . . . . . . . . . Highest Temperature 488 | 144 339 204 144 248 . 352 315 337 330 210 220 132 296 488 242 252 93 471 272 24 215 297 349 Average Temperature 73 | 72 133 55 27 50 . 54 92 68 112 69 51 44 61 91 63 61 55 118 101 22 95 101 111 Received Heat Transfer 1505 | . 42 54 108 27 . 441 9 9 81 27 162 4 60 155 . 8 . . 5 . 9 82 222 Effects 13 | . 1 . . . . 1 . 5 . . . . 3 . 3 . . . . . . . . Shutdowns 2 | . . . . . . 1 . 1 . . . . . . . . . . . . . . . Energy Bleed 1 | . . . . . . . . 1 . . . . . . . . . . . . . . . Interference 9 | . . . . . . . . 3 . . . . 3 . 3 . . . . . . . . Short Circuit 1 | . 1 . . . . . . . . . . . . . . . . . . . . . . Siege Activations . | . . . . . . . . . . . . . . . . . . . . . . . . Martial Activations . | . . . . . . . . . . . . . . . . . . . . . . . . Shielding Activations . | . . . . . . . . . . . . . . . . . . . . . . . . Robots Disrupted . | . . . . . . . . . . . . . . . . . . . . . . . . Combat Hostiles . | . . . . . . . . . . . . . . . . . . . . . . . . Robots Corrupted 18 | . . . . . . 2 . . . . 8 . 1 6 . . . . . . . . 1 Combat Hostiles 16 | . . . . . . 2 . . . . 8 . 1 5 . . . . . . . . . Parts Fried 43 | . . . . . . 4 . . . . 15 . 7 13 . . . . . . . . 4 Impact Corruptions . | . . . . . . . . . . . . . . . . . . . . . . . . Robots Melted 37 | . . . 1 . . 6 1 2 1 1 2 . 1 7 . 1 . . 5 1 4 4 . Combat Hostiles 32 | . . . 1 . . 5 1 2 1 1 2 . 1 6 . 1 . . 4 . 3 4 . Parts Melted 155 | . . 1 2 2 . 21 1 10 9 5 7 . 3 29 7 . . . 27 7 4 14 6 Heat Transferred 50328 | 111 444 370 1720 296 . 6100 2270 1930 1900 1240 2050 . 1558 8872 916 389 . 552 5461 2537 1196 4187 6229 Parts Sabotaged . | . . . . . . . . . . . . . . . . . . . . . . . . Parts Stolen . | . . . . . . . . . . . . . . . . . . . . . . . . Parts Stripped . | . . . . . . . . . . . . . . . . . . . . . . . . Power Chain Reactions 10 | . . . . . . 4 . . . . 3 . 1 . . . . . . . . 1 1 Alert | -11 -10 -9 -9 -9 -9 -6 -6 -6 -5 -5 -5 -5 -4 -4 -4 -4 -4 -3 -3 -3 -2 -2 -2 ------- Run | Yrd Mat Mat Sto Rec Scr Fac Was Fac Fac Upp Upp War Pro Fac Upp Upp Zhi Pro Res Qua Res Tes Frg Maximum Alert Level 5 | . . 1 2 . . 2 . 5 4 . . . . 5 . . . . 2 1 . 2 1 Low Security (%) 55 | 100 100 99 49 100 . 85 100 26 . . . . . . . . . . 40 59 100 30 1 Level 1 18 | . . . 47 . . 13 . 15 . . . . . . . . . . 25 40 . 20 98 Level 2 8 | . . . 2 . . . . 4 . . . . . 15 . . . . 34 . . 49 . Level 3 3 | . . . . . . . . 21 16 . . . . 11 . . . . . . . . . Level 4 7 | . . . . . . . . 8 83 . . . . 38 . . . . . . . . . Level 5 2 | . . . . . . . . 21 . . . . . 11 . . . . . . . . . High Security 2 | . . . . . . . . 2 . . . . . 23 . . . . . . . . . Max Security . | . . . . . . . . . . . . . . . . . . . . . . . . Peak Influence 3333 | . 30 200 414 130 . 427 148 1846 1366 . . . . 3333 . . . . 470 271 107 593 385 Initial 1100 | . . . 12 130 . . 148 . 1100 . . . . 462 . . . . . 254 33 54 276 Average 399 | . 5 51 196 25 . 108 25 833 1154 . . . . 1629 . . . . 252 181 70 334 301 Influence Increases 14501 | 5 129 387 891 235 . 1043 50 2607 532 110 345 110 397 4174 203 223 . 50 883 379 154 1005 589 Destroy 0b10 Robot/C 6520 | . 40 160 540 60 . 560 . 880 220 100 320 100 340 1560 140 160 . 40 400 160 80 420 240 Destroy 0b10 Robot/NC 720 | 5 15 40 60 20 . 40 . 90 5 10 5 10 10 140 5 10 . . 105 30 5 75 40 Destroy Leader 1208 | . 14 38 132 . . 148 . 188 40 . 20 . 20 248 . 20 . 10 122 36 32 56 84 Allied During Kill 1489 | . . . 3 . . . . 860 . . . . 12 523 58 33 . . . . . . . Successful Hack 243 | . 14 20 6 34 . 52 . 14 24 . . . . 4 . . . . 27 4 16 28 . Select Force Hacks 150 | . 30 . . 120 . . . . . . . . . . . . . . . . . . . Disable Machine 1530 | . 15 75 75 . . 150 . 360 45 . . . . 435 . . . . 45 75 . 150 105 Anti-Garrison Action 300 | . . . . . . . . . 150 . . . . 150 . . . . . . . . . Destroy Structure 1711 | . 1 54 60 1 . 78 50 185 48 . . . . 634 . . . . 184 74 21 231 90 Advance Influence 450 | . . . . . . . . . . . . . . 450 . . . . . . . . . Partial Spotted 15 | . . . . . . . . . . . . . . 15 . . . . . . . . . Lose Combat Pursuer 165 | . . . 15 . . 15 . 30 . . . . 15 15 . . . . . . . 45 30 Influence Decreases 14390 | 5 129 357 585 546 25 618 475 761 1224 962 805 50 475 861 1772 914 1073 50 431 770 118 609 775 Entered New Map 5336 | . . . 18 206 25 . 277 . 942 500 95 38 98 8 1234 336 1073 . . 198 28 43 217 Time Decay 7757 | 5 129 357 497 340 . 588 198 390 262 452 710 12 331 553 538 518 . 50 431 422 90 456 428 Lost Part 320 | . . . 10 . . 30 . . . 10 . . . 30 . . . . . . . 110 130 Lost Ally 527 | . . . 60 . . . . 221 20 . . . 46 120 . 60 . . . . . . . Purge Threat 450 | . . . . . . . . 150 . . . . . 150 . . . . . 150 . . . Squads Dispatched 100 | . 2 . 4 . . 13 . 20 5 . 1 . 1 35 . . . . 6 2 . 9 2 Investigation 25 | . 1 . 1 . . 5 . 8 1 . . . . 7 . . . . 2 . . . . Extermination 19 | . . . . . . 5 . 2 1 . . . . 3 . . . . 2 2 . 2 2 Reinforcement 20 | . 1 . 1 . . 3 . 2 . . . . . 4 . . . . 2 . . 7 . Assault 30 | . . . 2 . . . . 2 3 . 1 . 1 21 . . . . . . . . . Garrison 6 | . . . . . . . . 6 . . . . . . . . . . . . . . . Intercept . | . . . . . . . . . . . . . . . . . . . . . . . . Searches Triggered . | . . . . . . . . . . . . . . . . . . . . . . . . Construction Impeded 5 | . . . . . . 1 . 1 . . . . . 2 . . . . . . . 1 . Haulers Reinforced 5 | . . . . . . 1 . . . . . . . 2 . . . . 1 . . 1 . Active Scanning Responses . | . . . . . . . . . . . . . . . . . . . . . . . . Cargo Convoy Interrupts 1 | . . . . . . . . 1 . . . . . . . . . . . . . . . Stealth | -11 -10 -9 -9 -9 -9 -6 -6 -6 -5 -5 -5 -5 -4 -4 -4 -4 -4 -3 -3 -3 -2 -2 -2 --------- Run | Yrd Mat Mat Sto Rec Scr Fac Was Fac Fac Upp Upp War Pro Fac Upp Upp Zhi Pro Res Qua Res Tes Frg Distress Signals 24 | . . 1 1 . . 1 . 4 . . . 1 11 3 . . . . 1 . . 1 . Communications Jammed 98 | . . . . . . . . . . . . . . 42 . . . . 28 21 . 1 6 Distress Signals 94 | . . . . . . . . . . . . . . 41 . . . . 25 21 . 1 6 Times Spotted 395 | . 4 12 34 2 . 36 5 28 12 5 21 29 21 59 5 5 . 2 30 11 6 39 29 Peak Tracking Total 13 | . 2 3 5 1 . 5 3 4 4 5 5 13 9 10 1 4 . 2 4 3 2 9 5 Tactical Retreats 11 | . . . 1 . . 1 . 2 . . . . 1 1 . . . . . . . 3 2 Traps | -11 -10 -9 -9 -9 -9 -6 -6 -6 -5 -5 -5 -5 -4 -4 -4 -4 -4 -3 -3 -3 -2 -2 -2 ------- Run | Yrd Mat Mat Sto Rec Scr Fac Was Fac Fac Upp Upp War Pro Fac Upp Upp Zhi Pro Res Qua Res Tes Frg Traps Triggered 14 | . . . 1 . . 2 . 2 1 . . . . 3 . . . . 1 3 . 1 . Indirectly . | . . . . . . . . . . . . . . . . . . . . . . . . Trap Hack Attempts . | . . . . . . . . . . . . . . . . . . . . . . . . Triggered . | . . . . . . . . . . . . . . . . . . . . . . . . Disarmed . | . . . . . . . . . . . . . . . . . . . . . . . . Reprogrammed . | . . . . . . . . . . . . . . . . . . . . . . . . Reused . | . . . . . . . . . . . . . . . . . . . . . . . . Traps Extracted . | . . . . . . . . . . . . . . . . . . . . . . . . Installed 4 | . . . . . . . . . . . . 4 . . . . . . . . . . . Triggered . | . . . . . . . . . . . . . . . . . . . . . . . . Most Traps Carried 2 | . . . . . . . . . . . . 2 . . . . . . . . . . . Machines | -11 -10 -9 -9 -9 -9 -6 -6 -6 -5 -5 -5 -5 -4 -4 -4 -4 -4 -3 -3 -3 -2 -2 -2 ---------- Run | Yrd Mat Mat Sto Rec Scr Fac Was Fac Fac Upp Upp War Pro Fac Upp Upp Zhi Pro Res Qua Res Tes Frg Machines Disabled 112 | . 1 5 5 . . 10 . 24 4 . . 1 5 30 1 . . . 3 5 . 11 7 Max in Single Turn 6 | . 1 2 1 . . 2 . 1 1 . . 1 2 6 1 . . . 1 1 . 3 1 Garrison Access 4 | . . . 1 . . . . . 1 . . . . 1 . . . . 1 . . . . Machines Repaired . | . . . . . . . . . . . . . . . . . . . . . . . . Machines Dismantled . | . . . . . . . . . . . . . . . . . . . . . . . . Machines Sabotaged . | . . . . . . . . . . . . . . . . . . . . . . . . Overloaded Fab Kills . | . . . . . . . . . . . . . . . . . . . . . . . . Hacking | -11 -10 -9 -9 -9 -9 -6 -6 -6 -5 -5 -5 -5 -4 -4 -4 -4 -4 -3 -3 -3 -2 -2 -2 --------- Run | Yrd Mat Mat Sto Rec Scr Fac Was Fac Fac Upp Upp War Pro Fac Upp Upp Zhi Pro Res Qua Res Tes Frg Machines Accessed 106 | . 4 3 11 10 6 13 . 13 4 1 1 1 . 8 . 1 5 . 5 6 1 11 2 Terminals 46 | . 3 3 7 6 . 4 . 4 . . . . . 1 . . . . 3 5 1 7 2 Fabricators 6 | . . . . . . 3 . . 1 . . . . . . . . . . . . 2 . Repair Stations 8 | . . . 2 . . 1 . 1 1 . . . . 1 . . . . . 1 . 1 . Recycling Units 25 | . 1 . 1 4 . 5 . 7 . . . . . 6 . . . . 1 . . . . Scanalyzers 2 | . . . . . . . . 1 1 . . . . . . . . . . . . . . Garrison Access 4 | . . . 1 . . . . . 1 . . . . . . . . . 1 . . 1 . Total Hacks 239 | . 13 12 21 28 21 32 . 28 5 1 1 1 . 17 . 1 18 . 11 9 3 14 3 Successful 129 | . 8 9 10 12 21 17 . 11 3 1 1 1 . 8 . 1 18 . 2 2 1 3 . Failed 110 | . 5 3 11 16 . 15 . 17 2 . . . . 9 . . . . 9 7 2 11 3 Catastrophic 27 | . . . 2 7 . 4 . 3 1 . . . . . . . . . 5 3 1 . 1 Database Lockouts . | . . . . . . . . . . . . . . . . . . . . . . . . Manual 87 | . 7 8 2 18 . 12 . 17 . . . . . 13 . . . . 3 1 . 3 3 Terminals 104 | . 11 12 11 22 . 8 . 10 . . . . . 3 . . . . 5 8 3 8 3 Fabricators 10 | . . . . . . 7 . . 1 . . . . . . . . . . . . 2 . Repair Stations 28 | . . . 7 . . 8 . 4 1 . . . . 4 . . . . . 1 . 3 . Recycling Units 45 | . 2 . 2 6 . 9 . 13 . . . . . 10 . . . . 3 . . . . Scanalyzers 3 | . . . . . . . . 1 2 . . . . . . . . . . . . . . Garrison Access 6 | . . . 1 . . . . . 1 . . . . . . . . . 3 . . 1 . Terminal Hacks 76 | . 4 6 5 6 21 3 . 3 . 1 1 1 . 1 . 1 18 . 1 2 1 1 . Record 21 | . . . . . 15 . . . . . . . . . . . 6 . . . . . . Part Schematic 4 | . . . . . . . . . . . . . . . . . 4 . . . . . . Robot Analysis 17 | . 1 2 . 4 6 . . . . . . . . . . . 4 . . . . . . Prototype ID Bank 7 | . 1 . . 2 . . . . . . . . . . . . 4 . . . . . . Open Door 8 | . . . 3 . . . . . . 1 1 1 . . . 1 . . . . . 1 . Branch Access Points 3 | . . 1 . . . . . . . . . . . . . . . . 1 . 1 . . Emergency Access Points 1 | . . 1 . . . . . . . . . . . . . . . . . . . . . Terminal Index 1 | . . . . . . 1 . . . . . . . . . . . . . . . . . Repair Station Index 1 | . . 1 . . . . . . . . . . . . . . . . . . . . . Unreport Threat 3 | . . . . . . . . 1 . . . . . 1 . . . . . 1 . . . Locate Traps 5 | . 1 . 1 . . 1 . 1 . . . . . . . . . . . 1 . . . Extermination Status 1 | . . . . . . . . 1 . . . . . . . . . . . . . . . Recall Investigation 1 | . 1 . . . . . . . . . . . . . . . . . . . . . . Recall Extermination 1 | . . . . . . 1 . . . . . . . . . . . . . . . . . Recall Reinforcements 1 | . . . 1 . . . . . . . . . . . . . . . . . . . . Registered Components 1 | . . 1 . . . . . . . . . . . . . . . . . . . . . Fabricator Hacks 3 | . . . . . . 2 . . 1 . . . . . . . . . . . . . . Network Status 1 | . . . . . . 1 . . . . . . . . . . . . . . . . . Build 2 | . . . . . . 1 . . 1 . . . . . . . . . . . . . . Repair Station Hacks 14 | . . . 4 . . 6 . 1 . . . . . 2 . . . . . . . 1 . Scan Component 9 | . . . 2 . . 3 . 1 . . . . . 2 . . . . . . . 1 . Repair 5 | . . . 2 . . 3 . . . . . . . . . . . . . . . . . Recycling Unit Hacks 1 | . . . . 1 . . . . . . . . . . . . . . . . . . . Retrieve Components 1 | . . . . 1 . . . . . . . . . . . . . . . . . . . Scanalyzer 2 | . . . . . . . . . 2 . . . . . . . . . . . . . . Insert Component 1 | . . . . . . . . . 1 . . . . . . . . . . . . . . Analyze 1 | . . . . . . . . . 1 . . . . . . . . . . . . . . Garrison Access Hacks 2 | . . . 1 . . . . . . . . . . . . . . . 1 . . . . Seal Access 2 | . . . 1 . . . . . . . . . . . . . . . 1 . . . . Unauthorized Hacks 31 | . 4 3 . 5 . 6 . 7 . . . . . 5 . . . . . . . 1 . Terminals 9 | . 3 3 . 1 . . . 1 . . . . . . . . . . . . . 1 . Assimilate 2 | . 1 . . . . . . . . . . . . . . . . . . . . 1 . Botnet 5 | . 1 2 . 1 . . . 1 . . . . . . . . . . . . . . . Operators 2 | . 1 1 . . . . . . . . . . . . . . . . . . . . . Fabricators 1 | . . . . . . 1 . . . . . . . . . . . . . . . . . Report 1 | . . . . . . 1 . . . . . . . . . . . . . . . . . Repair Stations . | . . . . . . . . . . . . . . . . . . . . . . . . Recycling Units 21 | . 1 . . 4 . 5 . 6 . . . . . 5 . . . . . . . . . Tunnel 5 | . 1 . . 4 . . . . . . . . . . . . . . . . . . . Fedlink 14 | . . . . . . 5 . 6 . . . . . 3 . . . . . . . . . Scrapoids 2 | . . . . . . . . . . . . . . 2 . . . . . . . . . Scanalyzers . | . . . . . . . . . . . . . . . . . . . . . . . . Garrison Access . | . . . . . . . . . . . . . . . . . . . . . . . . Data Cores Recovered 2 | . . . 1 . . . . . . . . . . . . . . . 1 . . . . Used 1 | . . . . . . . . . . . . . . . . . . . 1 . . . . Hacking Detections 73 | . 3 3 8 6 . 11 . 10 4 . . . . 4 . . . . 4 6 1 11 2 Full Trace Events 11 | . . . . 6 . . . 1 . . . . . 2 . . . . 2 . . . . Feedback Events . | . . . . . . . . . . . . . . . . . . . . . . . . Feedback Blocked . | . . . . . . . . . . . . . . . . . . . . . . . . Robot Schematics Acquired . | . . . . . . . . . . . . . . . . . . . . . . . . Robots Built 1 | . . . . . . 1 . . . . . . . . . . . . . . . . . Authchips . | . . . . . . . . . . . . . . . . . . . . . . . . Time 76 | . . . . . . 76 . . . . . . . . . . . . . . . . . Total Robot Build Rating 5 | . . . . . . 5 . . . . . . . . . . . . . . . . . Part Schematics Acquired 10 | . . . . . . . . . 1 . . . . . . . 4 . . . . 5 . Parts Built 2 | . . . . . . . . . 2 . . . . . . . . . . . . . . Authchips . | . . . . . . . . . . . . . . . . . . . . . . . . Time 35 | . . . . . . . . . 35 . . . . . . . . . . . . . . Total Part Build Rating 12 | . . . . . . . . . 12 . . . . . . . . . . . . . . Parts Repaired 5 | . . . 2 . . 3 . . . . . . . . . . . . . . . . . Time 202 | . . . 64 . . 138 . . . . . . . . . . . . . . . . . Parts Recycled . | . . . . . . . . . . . . . . . . . . . . . . . . Recycled Matter . | . . . . . . . . . . . . . . . . . . . . . . . . Retrieved Matter . | . . . . . . . . . . . . . . . . . . . . . . . . Retrieved Components 8 | . . . . 8 . . . . . . . . . . . . . . . . . . . Parts Scanalyzed 1 | . . . . . . . . . 1 . . . . . . . . . . . . . . Part Schematics Acquired 1 | . . . . . . . . . 1 . . . . . . . . . . . . . . Parts Damaged . | . . . . . . . . . . . . . . . . . . . . . . . . Bothacking | -11 -10 -9 -9 -9 -9 -6 -6 -6 -5 -5 -5 -5 -4 -4 -4 -4 -4 -3 -3 -3 -2 -2 -2 ------------ Run | Yrd Mat Mat Sto Rec Scr Fac Was Fac Fac Upp Upp War Pro Fac Upp Upp Zhi Pro Res Qua Res Tes Frg Used RIF Installer . | . . . . . . . . . . . . . . . . . . . . . . . . Robots Hacked . | . . . . . . . . . . . . . . . . . . . . . . . . Non-combat . | . . . . . . . . . . . . . . . . . . . . . . . . Combat . | . . . . . . . . . . . . . . . . . . . . . . . . Robot Hacks Applied . | . . . . . . . . . . . . . . . . . . . . . . . . Relay Couplers Released 3 | . . . . . . . . . 2 . . . . 1 . . . . . . . . . Machine Destruction 3 | . . . . . . . . . 2 . . . . 1 . . . . . . . . . Fabnet Peak Effective % . | . . . . . . . . . . . . . . . . . . . . . . . . Robots Rewired 5 | . . . . . . . . . . . . . 4 . 1 . . . . . . . . Allies Hacked . | . . . . . . . . . . . . . . . . . . . . . . . . Hacks Repelled . | . . . . . . . . . . . . . . . . . . . . . . . . Allies | -11 -10 -9 -9 -9 -9 -6 -6 -6 -5 -5 -5 -5 -4 -4 -4 -4 -4 -3 -3 -3 -2 -2 -2 -------- Run | Yrd Mat Mat Sto Rec Scr Fac Was Fac Fac Upp Upp War Pro Fac Upp Upp Zhi Pro Res Qua Res Tes Frg Total Allies 38 | . 1 . 2 . . 1 19 . . . . . 4 10 1 . . . . . . . . Largest Group 19 | . 1 1 2 . . 1 19 19 . . . . 2 9 5 5 1 1 . . . . . Highest-Rated Group 702 | . 10 10 62 . . 23 702 702 . . . . 98 429 235 235 47 47 . . . . . Highest-Rated Ally 50 | . 10 10 31 . . 23 50 50 . . . . 49 50 47 47 47 47 . . . . . Total Orders 7 | . . . 1 . . . . . 2 . . 3 . 1 . . . . . . . . . FOLLOW 1 | . . . . . . . . . . . . . . 1 . . . . . . . . . EXPLORE 5 | . . . 1 . . . . . 1 . . 3 . . . . . . . . . . . RETURN 1 | . . . . . . . . . 1 . . . . . . . . . . . . . . Ally Attacks 509 | . . . 10 . . . 72 182 . . . . 17 186 20 20 . 2 . . . . . Total Damage 14976 | . . . 107 . . . 2265 6730 . . . . 506 4502 432 434 . . . . . . . Kills 88 | . . . 1 . . . 5 55 . . . . 2 22 . 3 . . . . . . . Allies Corrupted 1 | . . . . . . . . . . . . 1 . . . . . . . . . . . Allies Melted . | . . . . . . . . . . . . . . . . . . . . . . . . Intel | -11 -10 -9 -9 -9 -9 -6 -6 -6 -5 -5 -5 -5 -4 -4 -4 -4 -4 -3 -3 -3 -2 -2 -2 ------- Run | Yrd Mat Mat Sto Rec Scr Fac Was Fac Fac Upp Upp War Pro Fac Upp Upp Zhi Pro Res Qua Res Tes Frg Active Infowar (turns) 22548 | . . 1428 . . . 2622 983 900 229 967 2897 1300 786 2040 1489 1433 250 782 1271 1007 198 1116 850 Optics 159 | . . . . . . . . . . . . 159 . . . . . . . . . . . Sensors 18329 | . . . . . . 2230 983 805 . 967 2660 815 786 1479 1411 1333 250 779 1075 905 145 947 759 Terrain 11462 | . . . . . . 1595 . 873 229 . 2333 1141 397 537 1288 1332 156 709 672 200 . . . Structural 2 | . . . . . . . . . . . . . . . . . . . . . . . 2 Seismic 1428 | . . 1428 . . . . . . . . . . . . . . . . . . . . . T.N.C. 704 | . . . . . . 704 . . . . . . . . . . . . . . . . . Jamming 8423 | . . . . . . . . . . . . . . 1344 1489 1433 250 472 1202 1007 198 532 496 ECM 1 | . . . . . . . . . . . . . . . . 1 . . . . . . . Robot Analysis Total 17 | . 1 2 . 4 6 . . . . . . . . . . . 4 . . . . . . Derelict Logs Recovered 7 | . . . . . . . . . . 1 3 . . . 2 1 . . . . . . . Drone Launches 74 | . . . 12 . . . . . 2 . . 60 . . . . . . . . . . . Drone Recoveries 10 | . . . . . . . . . . . . 10 . . . . . . . . . . . Exploration | -11 -10 -9 -9 -9 -9 -6 -6 -6 -5 -5 -5 -5 -4 -4 -4 -4 -4 -3 -3 -3 -2 -2 -2 ------------- Run | Yrd Mat Mat Sto Rec Scr Fac Was Fac Fac Upp Upp War Pro Fac Upp Upp Zhi Pro Res Qua Res Tes Frg Turns Passed 31520 | 304 559 1472 1574 1452 3043 2645 983 1220 561 1130 3183 1363 937 2091 1532 1433 250 836 1271 1020 198 1410 1053 Spaces Moved 14178 | 176 255 550 496 609 1433 1079 448 575 226 499 1267 556 383 900 900 929 162 514 550 536 100 519 516 Core 47 | 4 . . . . . . . . . . . . . . . . . . . . . . 43 Treads 670 | 172 255 241 2 . . . . . . . . . . . . . . . . . . . . Legs . | . . . . . . . . . . . . . . . . . . . . . . . . Wheels 13461 | . . 309 494 609 1433 1079 448 575 226 499 1267 556 383 900 900 929 162 514 550 536 100 519 473 Hover . | . . . . . . . . . . . . . . . . . . . . . . . . Flight . | . . . . . . . . . . . . . . . . . . . . . . . . Fastest Speed 50 | 50 160 140 230 230 155 165 165 180 210 210 210 210 195 135 145 145 130 145 145 145 147 147 50 Average Speed 182 | 157 179 224 230 230 209 181 179 186 210 210 217 224 199 142 145 145 144 145 145 150 150 163 139 Slowest Speed 570 | 160 240 240 570 230 245 320 180 210 210 210 225 240 210 161 145 205 145 145 145 180 165 210 158 Overloaded Moves . | . . . . . . . . . . . . . . . . . . . . . . . . Propulsion Burnouts . | . . . . . . . . . . . . . . . . . . . . . . . . Robots Hopped . | . . . . . . . . . . . . . . . . . . . . . . . . Potential Cave-ins 20 | . . 2 . . . . . . . . . 3 2 6 . . . . . . 3 4 . Cave-ins Triggered 1 | . . . . . . . . . . . . . . 1 . . . . . . . . . Teleports 1 | . . . . . . . . . . . . . . . . . . . . . . . 1 Exploration Rate (%) 56 | 8 47 33 90 98 89 32 90 25 11 59 99 95 47 29 80 94 62 63 21 65 6 69 36 Regions Visited 23 Branch Regions 14 Pre-discovered Areas 12 | . 1 . . 4 2 1 . . . . 1 . . . . . 3 . . . . . . Known Exits Taken 11 | . . 1 . . . . . . . . 1 . . 1 1 1 1 1 1 1 1 1 . Unknown Exits Taken 10 | 1 1 . 1 1 1 . . 1 1 1 . 1 1 . . . . . . . . . . Scrap Searched 19 | . . . . . 5 . . . . 1 3 . . . 2 4 . 4 . . . . . Spaces Dug 428 | . 1 31 7 . . 21 6 9 4 27 37 1 13 97 23 28 . 20 43 22 4 22 12 Terrain Destroyed 1123 | . 1 81 49 1 . 74 12 30 23 45 70 28 47 264 38 63 . 29 103 40 11 81 33 Melee 6 | . 1 5 . . . . . . . . . . . . . . . . . . . . . Projectile 662 | . . . 2 1 . 47 12 30 10 45 63 2 24 85 38 32 . 29 103 40 11 57 31 AOE 455 | . . 76 47 . . 27 . . 13 . 7 26 23 179 . 31 . . . . . 24 2 Terrain Rammed . | . . . . . . . . . . . . . . . . . . . . . . . . Walls Destroyed . | . . . . . . . . . . . . . . . . . . . . . . . . Machines Disabled . | . . . . . . . . . . . . . . . . . . . . . . . . Actions | -11 -10 -9 -9 -9 -9 -6 -6 -6 -5 -5 -5 -5 -4 -4 -4 -4 -4 -3 -3 -3 -2 -2 -2 --------- Run | Yrd Mat Mat Sto Rec Scr Fac Was Fac Fac Upp Upp War Pro Fac Upp Upp Zhi Pro Res Qua Res Tes Frg Total 18212 | 189 326 710 786 637 1484 1585 584 661 275 542 1600 675 502 1481 1081 977 178 573 878 675 126 968 719 Wait 1948 | . 19 46 156 12 . 290 103 8 14 12 239 24 7 291 120 4 . 23 167 57 7 295 54 Move 14155 | 175 254 549 495 608 1432 1079 447 574 225 498 1266 555 382 898 899 928 161 513 549 535 99 518 516 Hop . | . . . . . . . . . . . . . . . . . . . . . . . . Pick Up 167 | 4 15 23 11 . 9 18 2 8 1 1 5 14 3 19 . 2 2 1 10 3 1 5 10 Fast Attach 104 | 4 4 3 3 . 8 12 1 1 1 2 2 10 1 10 . 6 7 6 5 7 . 7 4 Attach 93 | . 1 2 3 . 3 13 . 5 2 1 3 9 6 8 . . . . 4 . 2 19 12 Detach 59 | . . 3 2 . 3 8 1 3 1 . . 12 2 1 . . . 1 . 1 . 15 6 Swap 365 | . 5 20 15 2 8 49 5 15 5 3 33 9 15 71 8 10 . 9 36 7 5 21 14 Drop 220 | . 11 14 15 2 21 23 6 9 1 1 5 23 3 24 . 8 8 6 15 9 . 5 11 Fire 972 | 6 16 37 76 12 . 93 19 37 25 24 47 7 36 158 21 17 . 14 92 48 12 83 92 Melee 11 | . 1 10 . . . . . . . . . . . . . . . . . . . . . Ram 2 | . . . . 1 . . . 1 . . . . . . . . . . . . . . . Kick . | . . . . . . . . . . . . . . . . . . . . . . . . Crush 4 | . . 3 1 . . . . . . . . . . . . . . . . . . . . Escape Stasis 9 | . . . . . . . . . . . . . . 1 . . . . . 8 . . . Rewire 86 | . . . 3 . . . . . . . . 1 47 . 33 2 . . . . . . . Trap 6 | . . . . . . . . . . . . 6 . . . . . . . . . . . Miscellaneous 11 | . . . 6 . . . . . . . . 5 . . . . . . . . . . . Route ------- -11/Scrapyard -10/Materials (discovered 2 exits: *Mat / [*Min]) -9/Materials (discovered 3 exits: *Min x2 / *Sto) -9/Storage (discovered 2 exits: [*Mat] / *Rec) -9/Recycling -9/Scraptown (discovered 2 exits: *Fac x2) -6/Factory -6/Waste -6/Factory -5/Factory -5/Upper Caves -5/Upper Caves (discovered 2 exits: *Fac / *War) -5/Warlord -4/Proximity Caves -4/Factory (discovered 3 exits: *Upp x2 / Ext) -4/Upper Caves -4/Upper Caves (discovered 2 exits: *Res / *Zhi) -4/Zhirov -3/Proximity Caves -3/Research (discovered 2 exits: *Qua x2) -3/Quarantine -2/Research (discovered 2 exits: *Tes x2) -2/Testing (discovered 3 exits: *Acc / *Sec / *Frg) -2/Protoforge History --------- Turn | Location | Event 13 | -11/Scrapyard | Discovered new exit (range 14) 305 | -11/Scrapyard | Entered Materials 306 | -10/Materials | Build established: Mutant 464 | -10/Materials | Discovered new exit (range 7) 723 | -10/Materials | Discovered new exit (range 14) 864 | -10/Materials | Entered another Materials area 864 | -9/Materials | Accompanied by 1 ally 864 | -9/Materials | Evolved 2 slots: Utility x2 889 | -9/Materials | Identified exit to Mines 889 | -9/Materials | Identified exit to Storage 2336 | -9/Materials | Entered Storage 2336 | -9/Storage | Accompanied by 1 ally 2559 | -9/Storage | Lost 4 allies 2893 | -9/Storage | Repaired Med. Armor Plating 3256 | -9/Storage | Met a pair of Derelict thieves 3366 | -9/Storage | Discovered new exit (range 6) 3435 | -9/Storage | Repaired Med. Armor Plating 3608 | -9/Storage | Build established: Scavenger-Mutant 3900 | -9/Storage | Used back door to open Recycling access 3900 | -9/Storage | Discovered new exit (range 5) 3910 | -9/Storage | Entered Recycling 4322 | -9/Recycling | Build established: Mutant 5306 | -9/Recycling | Scanned before Scraplab entrance 5339 | -9/Recycling | Entered Scraplab 5357 | -9/Recycling | Discovered new exit (range 3) 5362 | -9/Recycling | Entered Scraptown 5362 | -9/Scraptown | System corruption cleaned by C-Scrubber 6010 | -9/Scraptown | Discovered new exit (range 5) 6329 | -9/Scraptown | Visited Fellowship of the Rings 6376 | -9/Scraptown | Visited Cyclists 6449 | -9/Scraptown | Visited UFD Registry 6449 | -9/Scraptown | Registered with UFD as "Chainhacker" 6523 | -9/Scraptown | Entered Cyclist Reading Room 6532 | -9/Scraptown | Learned location of Exiles (-9) 6532 | -9/Scraptown | Learned location of Zion (-6) 6647 | -9/Scraptown | Visited Assassins FH 6677 | -9/Scraptown | Visited Red Mages 6758 | -9/Scraptown | Visited Junk Repository 6820 | -9/Scraptown | Visited Supply Room 7196 | -9/Scraptown | Visited Junk Cannon Lab 7241 | -9/Scraptown | Found Prototype Special Weapon 7241 | -9/Scraptown | Identified Junk Cannon 7317 | -9/Scraptown | Visited DA-N13 Charitable Foundation 7408 | -9/Scraptown | Found DCF Scrap (27 items) 7457 | -9/Scraptown | Visited Curators Association 7821 | -9/Scraptown | Visited LU-1G1's Boring Crew 7869 | -9/Scraptown | Visited Analyses Database 7903 | -9/Scraptown | Visited Scrap Suit Storage 7957 | -9/Scraptown | Visited Research Penetration Think Tank 7996 | -9/Scraptown | Visited Derelict Rescue Squad 8038 | -9/Scraptown | Visited Infowarlord's Domain 8046 | -9/Scraptown | Found Exp. Sensor Array 8211 | -9/Scraptown | Discovered new exit (range 5) 8310 | -9/Scraptown | Met Optimus 8310 | -9/Scraptown | Accepted into 0bPrime 8405 | -9/Scraptown | Entered Factory 8405 | -6/Factory | Evolved 6 slots: Power x1, Utility x4, Weapon x1 8476 | -6/Factory | Discovered new exit (range 9) 8519 | -6/Factory | Identified exit to Lower Caves 8723 | -6/Factory | Fabricated M-22 Extractor? 8845 | -6/Factory | Build established: Scavenger-Tank 9203 | -6/Factory | Loaded intel: 8 recycling unit locations 9357 | -6/Factory | Learned location of Protoforge (-2) 9426 | -6/Factory | Build established: Skirmisher 10086 | -6/Factory | Repaired Hrd. Heavy Armor Plating 10137 | -6/Factory | Repaired Lgt. Angular Momentum Engine 10183 | -6/Factory | Repaired Imp. Medium Armor Plating 10761 | -6/Factory | Found Powered Armor 11050 | -6/Factory | Sucked down chute 11050 | -6/Factory | Entered Waste 11206 | -6/Waste | Spotted C-40 Crusher 11245 | -6/Waste | Destroyed C-40 Crusher 11257 | -6/Waste | Found Damper Plating 11299 | -6/Waste | Spotted C-40 Crusher 11302 | -6/Waste | Spotted C-40 Crusher 11306 | -6/Waste | Spotted C-40 Crusher 11368 | -6/Waste | Spotted C-40 Crusher 11379 | -6/Waste | Warlord forces began an assault 11381 | -6/Waste | Allies destroyed C-40 Crusher 11382 | -6/Waste | Allies destroyed C-40 Crusher 11385 | -6/Waste | Allies destroyed C-40 Crusher 11402 | -6/Waste | Spotted C-40 Crusher 11407 | -6/Waste | Allies destroyed C-40 Crusher 11428 | -6/Waste | Allies destroyed C-40 Crusher 11530 | -6/Waste | Discovered new exit (range 12) 11575 | -6/Waste | Identified exit to Factory 11726 | -6/Waste | Build established: Scavenger-Skirmisher 12033 | -6/Waste | Entered Factory 12033 | -6/Factory | Accompanied by 19 allies 12142 | -6/Factory | Loaded intel: 8 recycling unit locations 12391 | -6/Factory | Build established: Skirmisher 12536 | -6/Factory | Garrison activated, responded to threat 12603 | -6/Factory | Garrison activated, responded to threat 12629 | -6/Factory | Lost 6 allies 12733 | -6/Factory | First assault squad dispatched 12811 | -6/Factory | Cargo convoy interrupted 12932 | -6/Factory | Found Hvy. Reactive Plating 12935 | -6/Factory | Found Hvy. Reactive Plating 12941 | -6/Factory | Found Hvy. Reactive Plating 13062 | -6/Factory | Discovered new exit (range 15) 13195 | -6/Factory | Lost 4 allies 13224 | -6/Factory | High security lockdown imminent 13235 | -6/Factory | Build established: Scavenger-Tank 13253 | -6/Factory | Entered another Factory area 13253 | -5/Factory | Evolved 2 slots: Utility x2 13496 | -5/Factory | Fabricated Mic. Fission Core (x2) 13553 | -5/Factory | First assault squad dispatched 13679 | -5/Factory | Discovered new exit (range 7) 13814 | -5/Factory | Entered Upper Caves 13816 | -5/Upper Caves | Attracted the attention of an 0b10 checkpoint 13891 | -5/Upper Caves | Encountered a Warlord checkpoint 14633 | -5/Upper Caves | Learned location of 1 exit from Factory 14856 | -5/Upper Caves | Discovered new exit (range 9) 14892 | -5/Upper Caves | Found Alien Artifact 14892 | -5/Upper Caves | Identified Core Expander 14892 | -5/Upper Caves | Installed Core Expander, added new Utility slot 14944 | -5/Upper Caves | Entered another Upper Caves area 15072 | -5/Upper Caves | Attracted the attention of an 0b10 outpost 15866 | -5/Upper Caves | Discovered new exit (range 9) 16167 | -5/Upper Caves | Ambushed by research squad 17036 | -5/Upper Caves | Identified exit to Warlord 17924 | -5/Upper Caves | Learned location of 1 exit from Factory 18127 | -5/Upper Caves | Entered Warlord 18298 | -5/Warlord | Found Prototype Device 18298 | -5/Warlord | Identified Minesniffer Drone Bay 18320 | -5/Warlord | Found Minesniffer Drone Bay 18421 | -5/Warlord | Discovered new exit (range 36) 18486 | -5/Warlord | Found Prototype Special Weapon 18489 | -5/Warlord | Found Prototype Special Weapon 18902 | -5/Warlord | Rebuked by Warlord 18927 | -5/Warlord | Warlord's base attacked by MAIN.C 18935 | -5/Warlord | Found Prototype Reactor 18935 | -5/Warlord | Identified Vortex Chain Reactor 18946 | -5/Warlord | Found Prototype Processor 18946 | -5/Warlord | Identified Exp. Targeting Computer 18958 | -5/Warlord | Found Prototype Device 18958 | -5/Warlord | Identified System Purifier 18962 | -5/Warlord | Found Spectral Analyzer 19233 | -5/Warlord | Build established: Tank 19277 | -5/Warlord | Warlord forces counterattacked 19289 | -5/Warlord | Found Prototype Ballistic Cannon 19289 | -5/Warlord | Identified Hvy. Autocannon 19315 | -5/Warlord | Spotted Striker 19345 | -5/Warlord | Spotted Executioner 19355 | -5/Warlord | Spotted Executioner 19372 | -5/Warlord | Spotted Executioner 19411 | -5/Warlord | Lost 8 allies 19427 | -5/Warlord | Spotted Striker 19439 | -5/Warlord | Identified RU-N14's Throwing Claymores v3 (x2) 19467 | -5/Warlord | Destroyed 7 combat bots 19474 | -5/Warlord | Lost 3 allies 19490 | -5/Warlord | Entered Proximity Caves 19581 | -4/Proximity Caves | Attracted the attention of an 0b10 outpost 19629 | -4/Proximity Caves | Destroyed 9 combat bots 19769 | -4/Proximity Caves | Build established: Scavenger-Tank 19831 | -4/Proximity Caves | Spotter reported a threat 20140 | -4/Proximity Caves | Spotter reported a threat 20390 | -4/Proximity Caves | Discovered new exit (range 14) 20418 | -4/Proximity Caves | Spotter reported a threat 20427 | -4/Proximity Caves | Entered Factory 20427 | -4/Factory | Accompanied by 1 ally 20427 | -4/Factory | Evolved 2 slots: Propulsion x2 20428 | -4/Factory | Identified exit to Extension 20428 | -4/Factory | Identified exit to Upper Caves 20650 | -4/Factory | Loaded intel: 8 recycling unit locations 20778 | -4/Factory | Discovered exit to Upper Caves (range 15) 21052 | -4/Factory | Destroyed 12 combat bots 21271 | -4/Factory | Crushed by falling debris 21677 | -4/Factory | First assault squad dispatched 21885 | -4/Factory | Scrapoids reinforcements arrived? 21977 | -4/Factory | Scrapoids reinforcements arrived? 22032 | -4/Factory | High security lockdown imminent 22112 | -4/Factory | High security lockdown engaged 22251 | -4/Factory | Lost 3 allies 22262 | -4/Factory | Build established: Commander-Tank 22518 | -4/Factory | Entered Upper Caves 22518 | -4/Upper Caves | Accompanied by 4 allies 22705 | -4/Upper Caves | Learned Research interactive machine intel 22865 | -4/Upper Caves | Build established: Commander-Skirmisher 22963 | -4/Upper Caves | Encountered a Warlord checkpoint 23161 | -4/Upper Caves | Learned Research security intel 23665 | -4/Upper Caves | Attracted the attention of an 0b10 outpost 23700 | -4/Upper Caves | Discovered new exit (range 13) 23903 | -4/Upper Caves | Identified exit to Upper Caves 24050 | -4/Upper Caves | Entered another Upper Caves area 24050 | -4/Upper Caves | Accompanied by 5 allies 24159 | -4/Upper Caves | Discovered new exit (range 11) 24703 | -4/Upper Caves | Lost 4 allies 25001 | -4/Upper Caves | Learned location of 1 exit from Research 25093 | -4/Upper Caves | Build established: Skirmisher 25271 | -4/Upper Caves | Discovered new exit (range 3) 25274 | -4/Upper Caves | Identified exit to Zhirov 25483 | -4/Upper Caves | Entered Zhirov 25483 | -4/Zhirov | Accompanied by 1 ally 25485 | -4/Zhirov | Discovered new exit (range 3) 25511 | -4/Zhirov | Met Zhirov 25544 | -4/Zhirov | Learned location of Testing (-2) 25566 | -4/Zhirov | Zhirov requested help retrieving the SGEMP Prototype 25590 | -4/Zhirov | Found Alien Artifact 25607 | -4/Zhirov | Found Alien Artifact 25607 | -4/Zhirov | Identified Integrated Reactor 25607 | -4/Zhirov | Installed Integrated Reactor, increased core energy generation (+10) 25732 | -4/Zhirov | Identified exit to Proximity Caves 25733 | -4/Zhirov | Entered Proximity Caves 25733 | -3/Proximity Caves | Accompanied by 1 ally 26499 | -3/Proximity Caves | Discovered new exit (range 4) 26502 | -3/Proximity Caves | Identified exit to Research 26569 | -3/Proximity Caves | Entered Research 26569 | -3/Research | Evolved 2 slots: Utility x1, Weapon x1 26570 | -3/Research | Identified exit to Quarantine 26572 | -3/Research | Loaded intel: 45 interactive machine locations 27090 | -3/Research | Spotted B-86 Titan 27091 | -3/Research | Destroyed B-86 Titan 27840 | -3/Research | Entered Quarantine 27842 | -3/Quarantine | Spotted Alpha 7 28045 | -3/Quarantine | Found Alien Artifact 28045 | -3/Quarantine | Identified Phase Armor 28139 | -3/Quarantine | Found Alien Impact Weapon 28349 | -3/Quarantine | Build established: Tank 28539 | -3/Quarantine | System corruption reached 10% 28691 | -3/Quarantine | Discovered new exit (range 6) 28817 | -3/Quarantine | Found Alien Artifact 28855 | -3/Quarantine | Identified exit to Research 28860 | -3/Quarantine | Entered Research 28860 | -2/Research | Evolved 2 slots: Utility x2 28983 | -2/Research | Identified exit to Testing 29058 | -2/Research | Entered Testing 29081 | -2/Testing | Scanned by Researcher 29100 | -2/Testing | Found Prototype Protection 29100 | -2/Testing | Identified SHELL Armor 29104 | -2/Testing | Found Prototype Protection 29104 | -2/Testing | Identified Hvy. Regenerative Plating 29399 | -2/Testing | Build established: Skirmisher 29423 | -2/Testing | Assembled infested ambush trap array 29530 | -2/Testing | Lost 6 parts (1p3u2w) 29538 | -2/Testing | Destroyed 13 combat bots 29631 | -2/Testing | Found Prototype Device 29631 | -2/Testing | Identified Exp. Thermal Shield 29687 | -2/Testing | Found Prototype Energy Cannon 29687 | -2/Testing | Identified Hpw. Disruptor Cannon 29770 | -2/Testing | System corruption reached 10% 29817 | -2/Testing | Discovered new exit (range 12) 29868 | -2/Testing | Identified exit to Access 30100 | -2/Testing | Spotted Fortress 30199 | -2/Testing | Discovered new exit (range 6) 30199 | -2/Testing | Discovered new exit (range 6) 30206 | -2/Testing | Identified exit to Protoforge 30210 | -2/Testing | Identified exit to Section 7 30468 | -2/Testing | Entered Protoforge 30506 | -2/Protoforge | Spotted Hotshot 30510 | -2/Protoforge | Spotted Hotshot 30513 | -2/Protoforge | Superfortress began startup sequence 30518 | -2/Protoforge | Destroyed Hotshot 30526 | -2/Protoforge | Destroyed Hotshot 30873 | -2/Protoforge | Spotted Hotshot 30879 | -2/Protoforge | Spotted Hotshot 30889 | -2/Protoforge | Destroyed Hotshot 30892 | -2/Protoforge | Destroyed Hotshot 31224 | -2/Protoforge | Build established: Scavenger-Skirmisher 31335 | -2/Protoforge | Spotted AP7-3 31335 | -2/Protoforge | Spotted AP7-3 31354 | -2/Protoforge | Spotted Overlord 31362 | -2/Protoforge | Identified Transdimensional Reconstructor 31362 | -2/Protoforge | Warped through subspace 31393 | -2/Protoforge | Lost 5 parts (1p1n1u2w) 31478 | -2/Protoforge | System corruption reached 30% 31484 | -2/Protoforge | Core integrity fell below 50% 31489 | -2/Protoforge | Spotted EXE-6 31492 | -2/Protoforge | Spotted EXE-6 31498 | -2/Protoforge | Released all parts (11) 31504 | -2/Protoforge | Core integrity fell below 20% 31515 | -2/Protoforge | Spotted SKR-2 31515 | -2/Protoforge | Spotted SKR-2 31516 | -2/Protoforge | Spotted SKR-2 31519 | -2/Protoforge | Identified Terrabomb 31519 | -2/Protoforge | Used Terrabomb 31521 | -2/Protoforge | Destroyed by EXE-6 with Concept XC Strikerail Last Messages --------------- 31502_ Slug penetrates Forge Plexus. 31503_ N-04 Retriever collects Particle Reactor. 31503_ N-04 Retriever collects Exp. Thermal Shield. 31503_ N-04 Retriever collects Tiamat Missile Launcher. 31504_ M-36 Artificer repairs P-80 Master Imp. Antigrav System. 31504_ P-80 Master resets M-36 Artificer, system corruption cleaned. 31506_ M-36 Artificer repairs P-80 Master Adv. Heat Sink. 31506_ N-04 Retriever inserts Imp. Heavy Laser into Forge Plexus. 31507_ N-04 Retriever inserts Exp. Heat Sink into Forge Plexus. 31508_ N-04 Retriever inserts Adv. Shield Generator into Forge Plexus. 31509_ N-04 Retriever inserts Particle Reactor into Forge Plexus. 31510_ N-04 Retriever inserts Exp. Thermal Shield into Forge Plexus. 31510_ Penetrated by Slug. 31510_ Slug penetrates Forge Plexus. 31511_ N-04 Retriever inserts Tiamat Missile Launcher into Forge Plexus. 31512_ Penetrated by Slug. 31515_ System corrupted: Matter fused (-5). 31519_ Identified Terrabomb. 31519_ Terrabomb activated. 31521_ Penetrated by Slug. Map ----- +----------------------------------------------------+ | ????????????""""""""""""""""" " "" "" ????? | | ????????????""""""""""""""""" " "" " ????? | | ????????????"""""""""""""""" "" " " "????? | | ???????????""""""""""""""""" """ " ????? | | ??????????"""""""""""""""""" "" """ ????? | | ?????????"""""""""""""""""" " " ?????? | | ?????????""""""""""""""""" "" " " "" ?????? | | ????????""""""""""""""""" " " """"??????? | | ????????"""""""""""""""" " " " """??????? | | ???????"""""""""""""""" "" " " "" ??????? | | ???????""""""""""""""" "" "" " "" ???????? | | ??????? """"""""" "" "" ???????? | | ?????? "" "" "" """ ????????? | | ??????""""" " "" "" "" "????????? | | ?????? " " " " ?????????? | | ????? " """" """" " "" """ ?????????? | | ?????"" """ "" """""""""" "" ??????????? | | ????? """" """ " ???????????? | | ????? " ??"" " """ " ""????????????? | | ????" " " "" "" " "" ??????????? | | ???? " """" " "" "" ??????????? | | ????"""" "" """ " " " "??????????? | | ????" " " """" ""?????????? | | ???? " ????????? | | ????? """""""""" """ ????????? | | ?????"""""""" @ """ ????????? | | ???????? """""""""" " " " "??????????? | | ?????????######"";;;;;;;;;;;;;;;+++;;;;;?????????? | | ??????????????""; ;""""";"" ??????????????? | | ??????????????""; ;;;;;;;" ???????????? | | ?????????????? ;"" ??????????? | | ?????????????? ;"" ??????????? | | ??????????????? ;"" ??????????? | | ?????????????? ;"? ?????????????? | | ????????????? ? ;"?? ??????????????? | | ????????????????? ;"??? ???????????????? | | ??????????????????? ;"???? ????????????????? | | ????????????????????? ;????? ????????????????? | | ??????????????????????? ?????? ????????????????? | | ?????????????????????????????????????????????????? | | ?????????????????????????????????????????????????? | | ?????????????????????????????????????????????????? | | ?????????????????????????????????????????????????? | | ?????????????????????????????????????????????????? | | ?????????????????????????????????????????????????? | | ?????????????????????????????????????????????????? | | ?????????????????????????????????????????????????? | | ?????????????????????????????????????????????????? | | ?????????????????????????????????????????????????? | | ?????????????????????????????????????????????????? | +----------------------------------------------------+ Best States ------------- Heat Dissipation 188 Coolant Potential 100 Energy Generation 80 Energy Capacity 2600 Matter Stores 300 Matter Capacity 300 Sight Range 24 Robot Scan Range 20 Terrain Scan Range 20 Terrain Scan Density 10 Jamming Range 16 Power Amplification 30 Base Temperature (-) 200 Armor Coverage 2200 Resistance: KI 40 Resistance: EM 90 Weapon Shielding 90 Point Defense Rating 240 Weapon Cycling 25 Evasion (%) 50 Targeting Accuracy 12 Recoil Reduction 2 Particle Charging 25 Item Schematics ----------------- Hvy. Deuterium Engine | -5/Factory | Scanalyzed Assault Drone Bay | -4/Zhirov | Free Exp. Heat Sink | -4/Zhirov | Free Exp. Optical Array | -4/Zhirov | Free Imp. Arc Thrower | -4/Zhirov | Free Cld. Field Propulsion Drive | -2/Testing | Archive Imp. Energy Well | -2/Testing | Archive Adv. Energy Well | -2/Testing | Archive Imp. Q-thruster | -2/Testing | Archive Adv. Matter Compressor | -2/Testing | Archive Robot Schematics ------------------ None Fabricated ------------ M-22 Extractor | x1 | -6/Factory | Preloaded Mic. Fission Core | x2 | -5/Factory | Preloaded Repaired ---------- Med. Armor Plating | 17% | -9/Storage Med. Armor Plating | 41% | -9/Storage Hrd. Heavy Armor Plating | 55% | -6/Factory Lgt. Angular Momentum Engine | 10% | -6/Factory Imp. Medium Armor Plating | 32% | -6/Factory Alien Tech Used ----------------- Core Expander Integrated Reactor Phase Armor Transdimensional Reconstructor Terrabomb Achievements -------------- No Explosion For You Challenges ------------ None Game ------ Seed StrikePlasmaPick Manual? 0 Play Time 07:58:29 Cumulative 243.6 hours Start 2025.06.11 @ 19:12:49 End 2025.06.13 @ 01:30:15 Sessions 5 Manual Loads 0 Difficulty Rogue Special Mode None Game No. 173 Rogue 173 Adventurer 0 Explorer 0 Win Type - Total 13 Types 13/0/0/0/0/0/0/0/0/0 Lore% 72 Gallery% 70 Achievement% 63 Wizard Run 0 Options --------- Layout 0 ASCII 0 Keyboard 1 Movement Numpad Keybinds 0 Fullscreen 2 Font 36/Smallcaps Map View 76x50 Zoom Use 0% Tactical HUD 1 Map Filters NONE Filters NONE Steam 1 RUN: 6d7a0198-ecaf-4956-a41c-d7f38f8dcca0